Workbook

Sheet パーティーの概要
B3: パーティーの概要
B6: イベント | D6: 参加者の概要 | H6: ="出欠未定者数: "&OutstandingRSVPs -> 出欠未定者数: 2
B7: 祖母の 75 歳の誕生日 | D7: 出欠の確認の概要 | F7: 参加者 1 人あたりの費用 | H7: 総予算額
D8: 確認済みの参加者 | E8: 確認済みの合計人数 | F8: 料理 | G8: その他 | H8: 合計
B9: 日付 | D9: 大人 | E9: =SUMIF(参加者の表[出席の有無],"=○",参加者の表[大人]) -> 26 | F9: =料理の表[[#Totals],[大人 1 人 あたりの費用]] -> ¥1,269 | G9: =EssentialCostPerGuest -> ¥1,870 | H9: =(参加者の概要[[#This Row],[料理]]+参加者の概要[[#This Row],[その他]])*AdultTotal -> ¥81,603
B10: 2011-06-14 | D10: 子供 | E10: =SUMIF(参加者の表[出席の有無],"=○",参加者の表[子供]) -> 20 | F10: =料理の表[[#Totals],[子供 1 人 あたりの費用]] -> ¥725 | G10: =EssentialCostPerGuest -> ¥1,870 | H10: =(参加者の概要[[#This Row],[料理]]+参加者の概要[[#This Row],[その他]])*ChildrenTotal -> ¥51,897
D11: 合計 | E11: =SUBTOTAL(109,参加者の概要[確認済みの合計人数]) -> 46 | F11: =TEXT(SUBTOTAL(101,参加者の概要[料理]),"¥#,##0")&" (平均)" -> ¥997 (平均) | G11: =TEXT(SUBTOTAL(101,参加者の概要[その他]),"¥#,##0")&" (平均)" -> ¥1,870 (平均) | H11: =SUBTOTAL(109,参加者の概要[合計]) -> ¥133,500
B12: 時刻
B13: 14:00 ~ 16:00
B15: 場所
B16: 真理子おばさんの家 | D16: 予算の概要
D17: 項目 | E17: 数量 | F17: 総予算額 | G17: 総費用 | H17: 差額
D18: 料理と飲み物 | E18: =COUNTA(料理の表[料理または飲み物]) -> 18 | F18: ¥50,000 | G18: =料理の表[[#Totals],[総費用]] -> ¥47,500 | H18: =予算の概要[[#This Row],[総予算額]]-予算の概要[[#This Row],[総費用]] -> ¥2,500
D19: =予算の表_1[[#Headers],[機材と備品]] -> 機材と備品 | E19: =COUNTA(予算の表_1[機材と備品]) -> 7 | F19: ¥40,000 | G19: =予算の表_1[[#Totals],[費用]] -> ¥40,000 | H19: =予算の概要[[#This Row],[総予算額]]-予算の概要[[#This Row],[総費用]] -> ¥0
D20: =予算の表_2[[#Headers],[装飾品費]] -> 装飾品費 | E20: =COUNTA(予算の表_2[装飾品費]) -> 4 | F20: ¥15,000 | G20: =予算の表_2[[#Totals],[費用]] -> ¥17,500 | H20: =予算の概要[[#This Row],[総予算額]]-予算の概要[[#This Row],[総費用]] -> ¥-2,500
D21: =予算の表_3[[#Headers],[その他]] -> その他 | E21: =COUNTA(予算の表_3[その他]) -> 4 | F21: ¥30,000 | G21: =予算の表_3[[#Totals],[費用]] -> ¥28,500 | H21: =予算の概要[[#This Row],[総予算額]]-予算の概要[[#This Row],[総費用]] -> ¥1,500
D22: 合計 | E22: =SUBTOTAL(109,予算の概要[数量]) -> 33 | F22: =SUBTOTAL(109,予算の概要[総予算額]) -> ¥135,000 | G22: =SUBTOTAL(109,予算の概要[総費用]) -> ¥133,500 | H22: =予算の概要[[#Totals],[総予算額]]-予算の概要[[#Totals],[総費用]] -> ¥1,500

Sheet 参加者一覧
B3: 参加者一覧
B7: 氏名 | C7: 郵便番号 | D7: 都道府県 | E7: 市区町村 | F7: 番地 | G7: 電話 | H7: 電子メール | I7: 出席の有無 | J7: 子供 | K7: 大人 | L7: 合計
B8: 家族 1 | C8: 郵便番号 1 | D8: 都道府県 1 | E8: 市区町村 1 | F8: 住所 1 | G8: 電話 1 | H8: 電子メール 1 | I8: × | J8: 2 | K8: 2 | L8: =SUM(参加者の表[[#This Row],[子供]:[大人]]) -> 4
B9: 家族 2 | C9: 郵便番号 2 | D9: 都道府県 2 | E9: 市区町村 2 | F9: 住所 2 | G9: 電話 2 | H9: 電子メール 2 | I9: ○ | J9: 1 | K9: 1 | L9: =SUM(参加者の表[[#This Row],[子供]:[大人]]) -> 2
B10: 家族 3 | C10: 郵便番号 3 | D10: 都道府県 3 | E10: 市区町村 3 | F10: 住所 3 | G10: 電話 3 | H10: 電子メール 3 | I10: ○ | J10: 3 | K10: 3 | L10: =SUM(参加者の表[[#This Row],[子供]:[大人]]) -> 6
B11: 家族 4 | C11: 郵便番号 4 | D11: 都道府県 4 | E11: 市区町村 4 | F11: 住所 4 | G11: 電話 4 | H11: 電子メール 4 | K11: 2 | L11: =SUM(参加者の表[[#This Row],[子供]:[大人]]) -> 2
B12: 家族 5 | C12: 郵便番号 5 | D12: 都道府県 5 | E12: 市区町村 5 | F12: 住所 5 | G12: 電話 5 | H12: 電子メール 5 | I12: ○ | J12: 4 | K12: 3 | L12: =SUM(参加者の表[[#This Row],[子供]:[大人]]) -> 7
B13: 家族 6 | C13: 郵便番号 6 | D13: 都道府県 6 | E13: 市区町村 6 | F13: 住所 6 | G13: 電話 6 | H13: 電子メール 6 | I13: ○ | J13: 2 | K13: 2 | L13: =SUM(参加者の表[[#This Row],[子供]:[大人]]) -> 4
B14: 家族 7 | C14: 郵便番号 7 | D14: 都道府県 7 | E14: 市区町村 7 | F14: 住所 7 | G14: 電話 7 | H14: 電子メール 7 | I14: ○ | J14: 1 | K14: 4 | L14: =SUM(参加者の表[[#This Row],[子供]:[大人]]) -> 5
B15: 家族 8 | C15: 郵便番号 8 | D15: 都道府県 8 | E15: 市区町村 8 | F15: 住所 8 | G15: 電話 8 | H15: 電子メール 8 | I15: × | J15: 5 | K15: 3 | L15: =SUM(参加者の表[[#This Row],[子供]:[大人]]) -> 8
B16: 家族 9 | C16: 郵便番号 9 | D16: 都道府県 9 | E16: 市区町村 9 | F16: 住所 9 | G16: 電話 9 | H16: 電子メール 9 | I16: ○ | J16: 3 | K16: 2 | L16: =SUM(参加者の表[[#This Row],[子供]:[大人]]) -> 5
B17: 家族 10 | C17: 郵便番号 10 | D17: 都道府県 10 | E17: 市区町村 10 | F17: 住所 10 | G17: 電話 10 | H17: 電子メール 10 | I17: ○ | K17: 4 | L17: =SUM(参加者の表[[#This Row],[子供]:[大人]]) -> 4
B18: 家族 11 | C18: 郵便番号 11 | D18: 都道府県 11 | E18: 市区町村 11 | F18: 住所 11 | G18: 電話 11 | H18: 電子メール 11 | I18: ○ | J18: 3 | K18: 5 | L18: =SUM(参加者の表[[#This Row],[子供]:[大人]]) -> 8
B19: 家族 12 | C19: 郵便番号 12 | D19: 都道府県 12 | E19: 市区町村 12 | F19: 住所 12 | G19: 電話 12 | H19: 電子メール 12 | I19: × | J19: 2 | K19: 3 | L19: =SUM(参加者の表[[#This Row],[子供]:[大人]]) -> 5
B20: 家族 13 | C20: 郵便番号 13 | D20: 都道府県 13 | E20: 市区町村 13 | F20: 住所 13 | G20: 電話 13 | H20: 電子メール 13 | I20: ○ | J20: 3 | K20: 2 | L20: =SUM(参加者の表[[#This Row],[子供]:[大人]]) -> 5
B21: 家族 14 | C21: 郵便番号 14 | D21: 都道府県 14 | E21: 市区町村 14 | F21: 住所 14 | G21: 電話 14 | H21: 電子メール 14 | I21: × | K21: 1 | L21: =SUM(参加者の表[[#This Row],[子供]:[大人]]) -> 1
B22: 家族 15 | C22: 郵便番号 15 | D22: 都道府県 15 | E22: 市区町村 15 | F22: 住所 15 | G22: 電話 15 | H22: 電子メール 15 | K22: 2 | L22: =SUM(参加者の表[[#This Row],[子供]:[大人]]) -> 2

Sheet 料理と飲み物
B3: 料理と飲み物
B5: 費用と概算の節約額を入力すると、出席者の合計人数に基づいて合計の数量と 1 数量あたりの費用が自動的に計算されます。
B6: 料理または飲み物 | C6: 総費用 | D6: 1 人前の 数量 (子供) | E6: 1 人前の 数量 (大人) | F6: 合計数量 | G6: 1 数量あたりの費用 | H6: 子供 1 人 あたりの費用 | I6: 大人 1 人 あたりの費用 | J6: メモ
B7: ソーダ | C7: ¥1,500 | D7: 0.5 | E7: 2 | F7: =(料理の表[[#This Row],[1 人前の 数量 (子供)]]*ChildrenTotal)+(料理の表[[#This Row],[1 人前の 数量 (大人)]]*AdultTotal) -> 62 | G7: =IFERROR(料理の表[[#This Row],[総費用]]/料理の表[[#This Row],[合計数量]],"") -> ¥24 | H7: =IFERROR(料理の表[[#This Row],[1 人前の 数量 (子供)]]*料理の表[[#This Row],[1 数量あたりの費用]],"") -> ¥12 | I7: =IFERROR(料理の表[[#This Row],[1 数量あたりの費用]]*料理の表[[#This Row],[1 人前の 数量 (大人)]],"") -> ¥48 | J7: 2 リットル瓶
B8: 紙パックジュース | C8: ¥1,500 | D8: 2 | E8: 0 | F8: =(料理の表[[#This Row],[1 人前の 数量 (子供)]]*ChildrenTotal)+(料理の表[[#This Row],[1 人前の 数量 (大人)]]*AdultTotal) -> 40 | G8: =IFERROR(料理の表[[#This Row],[総費用]]/料理の表[[#This Row],[合計数量]],"") -> ¥38 | H8: =IFERROR(料理の表[[#This Row],[1 人前の 数量 (子供)]]*料理の表[[#This Row],[1 数量あたりの費用]],"") -> ¥75 | I8: =IFERROR(料理の表[[#This Row],[1 数量あたりの費用]]*料理の表[[#This Row],[1 人前の 数量 (大人)]],"") -> ¥0 | J8: リンゴと白ブドウ
B9: ワイン | C9: ¥5,000 | D9: 0 | E9: 2 | F9: =(料理の表[[#This Row],[1 人前の 数量 (子供)]]*ChildrenTotal)+(料理の表[[#This Row],[1 人前の 数量 (大人)]]*AdultTotal) -> 52 | G9: =IFERROR(料理の表[[#This Row],[総費用]]/料理の表[[#This Row],[合計数量]],"") -> ¥96 | H9: =IFERROR(料理の表[[#This Row],[1 人前の 数量 (子供)]]*料理の表[[#This Row],[1 数量あたりの費用]],"") -> ¥0 | I9: =IFERROR(料理の表[[#This Row],[1 数量あたりの費用]]*料理の表[[#This Row],[1 人前の 数量 (大人)]],"") -> ¥192
B10: ケーキ | C10: ¥7,500 | D10: 1 | E10: 1 | F10: =(料理の表[[#This Row],[1 人前の 数量 (子供)]]*ChildrenTotal)+(料理の表[[#This Row],[1 人前の 数量 (大人)]]*AdultTotal) -> 46 | G10: =IFERROR(料理の表[[#This Row],[総費用]]/料理の表[[#This Row],[合計数量]],"") -> ¥163 | H10: =IFERROR(料理の表[[#This Row],[1 人前の 数量 (子供)]]*料理の表[[#This Row],[1 数量あたりの費用]],"") -> ¥163 | I10: =IFERROR(料理の表[[#This Row],[1 数量あたりの費用]]*料理の表[[#This Row],[1 人前の 数量 (大人)]],"") -> ¥163 | J10: 地元のパンの店に注文
B11: アイスクリーム | C11: ¥2,000 | D11: 1 | E11: 1.5 | F11: =(料理の表[[#This Row],[1 人前の 数量 (子供)]]*ChildrenTotal)+(料理の表[[#This Row],[1 人前の 数量 (大人)]]*AdultTotal) -> 59 | G11: =IFERROR(料理の表[[#This Row],[総費用]]/料理の表[[#This Row],[合計数量]],"") -> ¥34 | H11: =IFERROR(料理の表[[#This Row],[1 人前の 数量 (子供)]]*料理の表[[#This Row],[1 数量あたりの費用]],"") -> ¥34 | I11: =IFERROR(料理の表[[#This Row],[1 数量あたりの費用]]*料理の表[[#This Row],[1 人前の 数量 (大人)]],"") -> ¥51
B12: カップ入りプリン | C12: ¥1,500 | D12: 1 | E12: 0 | F12: =(料理の表[[#This Row],[1 人前の 数量 (子供)]]*ChildrenTotal)+(料理の表[[#This Row],[1 人前の 数量 (大人)]]*AdultTotal) -> 20 | G12: =IFERROR(料理の表[[#This Row],[総費用]]/料理の表[[#This Row],[合計数量]],"") -> ¥75 | H12: =IFERROR(料理の表[[#This Row],[1 人前の 数量 (子供)]]*料理の表[[#This Row],[1 数量あたりの費用]],"") -> ¥75 | I12: =IFERROR(料理の表[[#This Row],[1 数量あたりの費用]]*料理の表[[#This Row],[1 人前の 数量 (大人)]],"") -> ¥0 | J12: パックになったカップを購入: バニラとチョコレート
B13: ソーセージ詰めマッシュルーム | C13: ¥3,200 | D13: 1 | E13: 2 | F13: =(料理の表[[#This Row],[1 人前の 数量 (子供)]]*ChildrenTotal)+(料理の表[[#This Row],[1 人前の 数量 (大人)]]*AdultTotal) -> 72 | G13: =IFERROR(料理の表[[#This Row],[総費用]]/料理の表[[#This Row],[合計数量]],"") -> ¥44 | H13: =IFERROR(料理の表[[#This Row],[1 人前の 数量 (子供)]]*料理の表[[#This Row],[1 数量あたりの費用]],"") -> ¥44 | I13: =IFERROR(料理の表[[#This Row],[1 数量あたりの費用]]*料理の表[[#This Row],[1 人前の 数量 (大人)]],"") -> ¥89 | J13: クリーム チーズとソーセージを詰めたマッシュルーム
B14: ブルスケッタ | C14: ¥2,200 | D14: 0 | E14: 3 | F14: =(料理の表[[#This Row],[1 人前の 数量 (子供)]]*ChildrenTotal)+(料理の表[[#This Row],[1 人前の 数量 (大人)]]*AdultTotal) -> 78 | G14: =IFERROR(料理の表[[#This Row],[総費用]]/料理の表[[#This Row],[合計数量]],"") -> ¥28 | H14: =IFERROR(料理の表[[#This Row],[1 人前の 数量 (子供)]]*料理の表[[#This Row],[1 数量あたりの費用]],"") -> ¥0 | I14: =IFERROR(料理の表[[#This Row],[1 数量あたりの費用]]*料理の表[[#This Row],[1 人前の 数量 (大人)]],"") -> ¥85 | J14: トマトとバジル
B15: スモーク サーモン | C15: ¥5,000 | D15: 1 | E15: 2 | F15: =(料理の表[[#This Row],[1 人前の 数量 (子供)]]*ChildrenTotal)+(料理の表[[#This Row],[1 人前の 数量 (大人)]]*AdultTotal) -> 72 | G15: =IFERROR(料理の表[[#This Row],[総費用]]/料理の表[[#This Row],[合計数量]],"") -> ¥69 | H15: =IFERROR(料理の表[[#This Row],[1 人前の 数量 (子供)]]*料理の表[[#This Row],[1 数量あたりの費用]],"") -> ¥69 | I15: =IFERROR(料理の表[[#This Row],[1 数量あたりの費用]]*料理の表[[#This Row],[1 人前の 数量 (大人)]],"") -> ¥139
B16: ミニ ベーグル | C16: ¥2,000 | D16: 1 | E16: 2 | F16: =(料理の表[[#This Row],[1 人前の 数量 (子供)]]*ChildrenTotal)+(料理の表[[#This Row],[1 人前の 数量 (大人)]]*AdultTotal) -> 72 | G16: =IFERROR(料理の表[[#This Row],[総費用]]/料理の表[[#This Row],[合計数量]],"") -> ¥28 | H16: =IFERROR(料理の表[[#This Row],[1 人前の 数量 (子供)]]*料理の表[[#This Row],[1 数量あたりの費用]],"") -> ¥28 | I16: =IFERROR(料理の表[[#This Row],[1 数量あたりの費用]]*料理の表[[#This Row],[1 人前の 数量 (大人)]],"") -> ¥56 | J16: 4 袋 - 盛り合わせ
B17: クリーム チーズ | C17: ¥1,000 | D17: 1 | E17: 2 | F17: =(料理の表[[#This Row],[1 人前の 数量 (子供)]]*ChildrenTotal)+(料理の表[[#This Row],[1 人前の 数量 (大人)]]*AdultTotal) -> 72 | G17: =IFERROR(料理の表[[#This Row],[総費用]]/料理の表[[#This Row],[合計数量]],"") -> ¥14 | H17: =IFERROR(料理の表[[#This Row],[1 人前の 数量 (子供)]]*料理の表[[#This Row],[1 数量あたりの費用]],"") -> ¥14 | I17: =IFERROR(料理の表[[#This Row],[1 数量あたりの費用]]*料理の表[[#This Row],[1 人前の 数量 (大人)]],"") -> ¥28 | J17: 大きめのチューブを 2 つ
B18: ケイパー | C18: ¥1,200 | D18: 1 | E18: 2 | F18: =(料理の表[[#This Row],[1 人前の 数量 (子供)]]*ChildrenTotal)+(料理の表[[#This Row],[1 人前の 数量 (大人)]]*AdultTotal) -> 72 | G18: =IFERROR(料理の表[[#This Row],[総費用]]/料理の表[[#This Row],[合計数量]],"") -> ¥17 | H18: =IFERROR(料理の表[[#This Row],[1 人前の 数量 (子供)]]*料理の表[[#This Row],[1 数量あたりの費用]],"") -> ¥17 | I18: =IFERROR(料理の表[[#This Row],[1 数量あたりの費用]]*料理の表[[#This Row],[1 人前の 数量 (大人)]],"") -> ¥33 | J18: 3 ビン
B19: 手羽フライ | C19: ¥4,500 | D19: 2 | E19: 4 | F19: =(料理の表[[#This Row],[1 人前の 数量 (子供)]]*ChildrenTotal)+(料理の表[[#This Row],[1 人前の 数量 (大人)]]*AdultTotal) -> 144 | G19: =IFERROR(料理の表[[#This Row],[総費用]]/料理の表[[#This Row],[合計数量]],"") -> ¥31 | H19: =IFERROR(料理の表[[#This Row],[1 人前の 数量 (子供)]]*料理の表[[#This Row],[1 数量あたりの費用]],"") -> ¥63 | I19: =IFERROR(料理の表[[#This Row],[1 数量あたりの費用]]*料理の表[[#This Row],[1 人前の 数量 (大人)]],"") -> ¥125 | J19: 地元の鶏肉店から購入
B20: ハマス | C20: ¥1,000 | D20: 4 | E20: 6 | F20: =(料理の表[[#This Row],[1 人前の 数量 (子供)]]*ChildrenTotal)+(料理の表[[#This Row],[1 人前の 数量 (大人)]]*AdultTotal) -> 236 | G20: =IFERROR(料理の表[[#This Row],[総費用]]/料理の表[[#This Row],[合計数量]],"") -> ¥4 | H20: =IFERROR(料理の表[[#This Row],[1 人前の 数量 (子供)]]*料理の表[[#This Row],[1 数量あたりの費用]],"") -> ¥17 | I20: =IFERROR(料理の表[[#This Row],[1 数量あたりの費用]]*料理の表[[#This Row],[1 人前の 数量 (大人)]],"") -> ¥25 | J20: 前の晩に作る
B21: パルメザン ピタ チップス | C21: ¥1,400 | D21: 4 | E21: 6 | F21: =(料理の表[[#This Row],[1 人前の 数量 (子供)]]*ChildrenTotal)+(料理の表[[#This Row],[1 人前の 数量 (大人)]]*AdultTotal) -> 236 | G21: =IFERROR(料理の表[[#This Row],[総費用]]/料理の表[[#This Row],[合計数量]],"") -> ¥6 | H21: =IFERROR(料理の表[[#This Row],[1 人前の 数量 (子供)]]*料理の表[[#This Row],[1 数量あたりの費用]],"") -> ¥24 | I21: =IFERROR(料理の表[[#This Row],[1 数量あたりの費用]]*料理の表[[#This Row],[1 人前の 数量 (大人)]],"") -> ¥36 | J21: 前の晩に作る
B22: 野菜の盛り合わせ | C22: ¥3,000 | D22: 4 | E22: 10 | F22: =(料理の表[[#This Row],[1 人前の 数量 (子供)]]*ChildrenTotal)+(料理の表[[#This Row],[1 人前の 数量 (大人)]]*AdultTotal) -> 340 | G22: =IFERROR(料理の表[[#This Row],[総費用]]/料理の表[[#This Row],[合計数量]],"") -> ¥9 | H22: =IFERROR(料理の表[[#This Row],[1 人前の 数量 (子供)]]*料理の表[[#This Row],[1 数量あたりの費用]],"") -> ¥35 | I22: =IFERROR(料理の表[[#This Row],[1 数量あたりの費用]]*料理の表[[#This Row],[1 人前の 数量 (大人)]],"") -> ¥88 | J22: ニンジン スティック、セロリ、ブロッコリー、カリフラワー、レッド ペッパーとグリーン ペッパー
B23: チーズ ボール | C23: ¥1,500 | D23: 5 | E23: 10 | F23: =(料理の表[[#This Row],[1 人前の 数量 (子供)]]*ChildrenTotal)+(料理の表[[#This Row],[1 人前の 数量 (大人)]]*AdultTotal) -> 360 | G23: =IFERROR(料理の表[[#This Row],[総費用]]/料理の表[[#This Row],[合計数量]],"") -> ¥4 | H23: =IFERROR(料理の表[[#This Row],[1 人前の 数量 (子供)]]*料理の表[[#This Row],[1 数量あたりの費用]],"") -> ¥21 | I23: =IFERROR(料理の表[[#This Row],[1 数量あたりの費用]]*料理の表[[#This Row],[1 人前の 数量 (大人)]],"") -> ¥42 | J23: 盛り合わせ: クリーム チーズ、風味の強いチーズ、およびナッツ
B24: クラッカー | C24: ¥2,500 | D24: 5 | E24: 10 | F24: =(料理の表[[#This Row],[1 人前の 数量 (子供)]]*ChildrenTotal)+(料理の表[[#This Row],[1 人前の 数量 (大人)]]*AdultTotal) -> 360 | G24: =IFERROR(料理の表[[#This Row],[総費用]]/料理の表[[#This Row],[合計数量]],"") -> ¥7 | H24: =IFERROR(料理の表[[#This Row],[1 人前の 数量 (子供)]]*料理の表[[#This Row],[1 数量あたりの費用]],"") -> ¥35 | I24: =IFERROR(料理の表[[#This Row],[1 数量あたりの費用]]*料理の表[[#This Row],[1 人前の 数量 (大人)]],"") -> ¥69 | J24: 盛り合わせ
B25: 合計 | C25: =SUBTOTAL(109,料理の表[総費用]) -> ¥47,500 | D25: =SUBTOTAL(109,料理の表[1 人前の 数量 (子供)]) -> 34.5 | E25: =SUBTOTAL(109,料理の表[1 人前の 数量 (大人)]) -> 65.5 | F25: =SUBTOTAL(109,料理の表[合計数量]) -> 2393 | G25: =SUBTOTAL(109,料理の表[1 数量あたりの費用]) -> ¥692 | H25: =SUBTOTAL(109,料理の表[子供 1 人 あたりの費用]) -> ¥725 | I25: =SUBTOTAL(109,料理の表[大人 1 人 あたりの費用]) -> ¥1,269

Sheet その他の必須項目
B3: その他の必須項目
B6: 機材と備品 | C6: 費用 | D6: 購入済み | E6: メモ
B7: 部屋/ホール レンタル | C7: ¥25,000 | D7: ○
B8: リネン | C8: ¥3,000 | D8: ○ | E8: レンタル
B9: テーブルと椅子 | C9: ¥0 | E9: ホール利用料金に含まれる
B10: 飲み物用ナプキン | C10: ¥2,500
B11: ディナーナプキン | C11: ¥2,000 | E11: レンタル
B12: テーブル サービス | C12: ¥5,000 | E12: レンタル
B13: 飲み物用グラス | C13: ¥2,500 | E13: レンタル
B14: 合計 | C14: =SUBTOTAL(109,予算の表_1[費用]) -> ¥40,000
B18: 装飾品費 | C18: 費用 | D18: 購入済み | E18: メモ
B19: 風船 | C19: ¥2,500
B20: 風船用のヘリウムタンク | C20: ¥5,000 | E20: レンタル
B21: テーブルの上の装飾品 | C21: ¥10,000 | D21: ○ | E21: 合計 10 個
B22: ガラスの花瓶 | C22: ¥0 | E22: さよ子から借りる
B23: 合計 | C23: =SUBTOTAL(109,予算の表_2[費用]) -> ¥17,500
B27: その他 | C27: 費用 | D27: 購入済み | E27: メモ
B28: 招待状 | C28: ¥5,000 | D28: ○
B29: 郵送料 | C29: ¥6,000 | D29: ○
B30: カメラマン | C30: ¥12,500 | E30: 2 時間 (14:00 ~ 16:00)
B31: 記念品 | C31: ¥5,000
B32: 合計 | C32: =SUBTOTAL(109,予算の表_3[費用]) -> ¥28,500

Sheet 座席の配置図
A1: 座席の配置
AH35: *1 マス = 約 1 平方メートル
A36: メモ | T36: =" 出席確認済み参加者の合計人数: "&ConfirmedGuests -> 出席確認済み参加者の合計人数: 46
T37: 次のテーブル セットアップのいずれかを利用できます。
U38: ="137 cm の円卓(6 席) x "&ROUNDUP(ConfirmedGuests/6,0) -> 137 cm の円卓(6 席) x 8
U39: ="152 cm の円卓(8 席) x "&ROUNDUP(ConfirmedGuests/8,0) -> 152 cm の円卓(8 席) x 6
U40: ="183 cm の円卓(10 席) x "&ROUNDUP(ConfirmedGuests/10,0) -> 183 cm の円卓(10 席) x 5
U41: ="76 cm x 183 cm のテーブル(6 席) x "&ROUNDUP(ConfirmedGuests/6,0) -> 76 cm x 183 cm のテーブル(6 席) x 8
U42: ="76 cm x 244 cm のテーブル(8 席) x "&ROUNDUP(ConfirmedGuests/8,0) -> 76 cm x 244 cm のテーブル(8 席) x 6
T43: (できればテーブルの間にスペースを空ける: 約 1 m)
